[Event "Early-Titled-Tuesday-Blitz-October-03-2023"]
[Site "Chess.com"]
[Date "2023.10.03"]
[Round "1"]
[White "SRob2003"]
[Black "drdaro"]
[Result "1-0"]
[WhiteElo "2603"]
[BlackElo "2259"]
[TimeControl "180+1"]
[EndTime "8:07:48 PDT"]
[Termination "SRob2003 won on time"]

1. c4 {[%clk 0:03:00.9]} 1... g6 {[%clk 0:02:55.7]} 2. g3 {[%clk 0:03:00.6]}
2... Bg7 {[%clk 0:02:56.6]} 3. Bg2 {[%clk 0:03:00.7]} 3... d6 {[%clk 0:02:57]}
4. Nc3 {[%clk 0:03:01.1]} 4... Nf6 {[%clk 0:02:56.6]} 5. Nf3 {[%clk 0:03:01.6]}
5... O-O {[%clk 0:02:57.2]} 6. O-O {[%clk 0:03:01.8]} 6... e5 {[%clk 0:02:57.9]}
7. Rb1 {[%clk 0:03:00]} 7... a5 {[%clk 0:02:57.6]} 8. a3 {[%clk 0:02:59.7]} 8...
Nc6 {[%clk 0:02:54.4]} 9. b4 {[%clk 0:03:00]} 9... axb4 {[%clk 0:02:55.3]} 10.
axb4 {[%clk 0:02:59.9]} 10... Bf5 {[%clk 0:02:42.6]} 11. d3 {[%clk 0:02:59.2]}
11... e4 {[%clk 0:02:42.1]} 12. Nh4 {[%clk 0:02:59.5]} 12... exd3 {[%clk
0:02:41.6]} 13. Nxf5 {[%clk 0:03:00.2]} 13... dxe2 {[%clk 0:02:40.4]} 14. Qxe2
{[%clk 0:02:58.3]} 14... gxf5 {[%clk 0:02:40.2]} 15. b5 {[%clk 0:02:58.7]} 15...
Nd4 {[%clk 0:02:18.5]} 16. Qd3 {[%clk 0:02:57.6]} 16... c5 {[%clk 0:02:16.9]}
17. Bxb7 {[%clk 0:02:56.8]} 17... Ra7 {[%clk 0:02:10.2]} 18. Bg2 {[%clk
0:02:55.8]} 18... Re8 {[%clk 0:02:05.1]} 19. b6 {[%clk 0:02:43.6]} 19... Rae7
{[%clk 0:01:58.9]} 20. b7 {[%clk 0:02:43.8]} 20... Qb8 {[%clk 0:01:53.1]} 21.
Be3 {[%clk 0:02:40.4]} 21... Ne4 {[%clk 0:01:51.3]} 22. Nd5 {[%clk 0:02:36.5]}
22... Rxb7 {[%clk 0:01:49.1]} 23. Rxb7 {[%clk 0:02:28.1]} 23... Qxb7 {[%clk
0:01:50]} 24. Rb1 {[%clk 0:02:27.8]} 24... Qa7 {[%clk 0:01:15.6]} 25. Bxd4
{[%clk 0:02:17.2]} 25... Bxd4 {[%clk 0:01:15]} 26. Bxe4 {[%clk 0:02:17.5]} 26...
fxe4 {[%clk 0:01:11.4]} 27. Qe2 {[%clk 0:02:17.2]} 27... Qd7 {[%clk 0:01:03.2]}
28. Qh5 {[%clk 0:02:08.3]} 28... Qe6 {[%clk 0:00:48]} 29. Nc7 {[%clk 0:01:42.8]}
29... Qe5 {[%clk 0:00:09.4]} 30. Qg4+ {[%clk 0:01:30.7]} 30... Kf8 {[%clk
0:00:09.8]} 31. Nxe8 {[%clk 0:01:30.4]} 31... Kxe8 {[%clk 0:00:10.5]} 32. Rb8+
{[%clk 0:01:30.5]} 32... Ke7 {[%clk 0:00:10.9]} 33. Rb7+ {[%clk 0:01:29.8]}
33... Kf6 {[%clk 0:00:10.1]} 34. Qh4+ {[%clk 0:01:28.6]} 34... Kg7 {[%clk
0:00:09.6]} 35. Qg4+ {[%clk 0:01:27.2]} 35... Kf6 {[%clk 0:00:09.8]} 36. Qg8
{[%clk 0:01:25]} 36... Qe6 {[%clk 0:00:07.6]} 37. Qxh7 {[%clk 0:01:19]} 37...
Qxc4 {[%clk 0:00:07.4]} 38. Kg2 {[%clk 0:01:15.4]} 38... Qa2 {[%clk 0:00:06.7]}
39. Kh3 {[%clk 0:01:07.1]} 39... Bxf2 {[%clk 0:00:05.4]} 40. Qxe4 {[%clk
0:01:06.9]} 40... Bd4 {[%clk 0:00:04.4]} 41. Qf4+ {[%clk 0:01:06.8]} 41... Kg7
{[%clk 0:00:04.8]} 42. Qg5+ {[%clk 0:01:06.9]} 42... Kh7 {[%clk 0:00:04.9]} 43.
Rb8 {[%clk 0:01:06.5]} 43... Qe6+ {[%clk 0:00:05.4]} 44. g4 {[%clk 0:01:05.5]}
44... Qe3+ {[%clk 0:00:05.2]} 45. Qxe3 {[%clk 0:01:05.7]} 45... Bxe3 {[%clk
0:00:06.1]} 46. Kg3 {[%clk 0:01:00.8]} 46... Bd4 {[%clk 0:00:05.7]} 47. Kf3
{[%clk 0:00:59.9]} 47... c4 {[%clk 0:00:06]} 48. Ke4 {[%clk 0:01:00.4]} 48...
Be5 {[%clk 0:00:06.4]} 49. Rc8 {[%clk 0:00:54.9]} 49... c3 {[%clk 0:00:06.4]}
50. h4 {[%clk 0:00:55.5]} 50... Kg6 {[%clk 0:00:06.2]} 51. Rc4 {[%clk
0:00:53.7]} 51... Kf6 {[%clk 0:00:06]} 52. Kd5 {[%clk 0:00:53.3]} 52... Kg6
{[%clk 0:00:05.5]} 53. Rc7 {[%clk 0:00:51.6]} 53... Kf6 {[%clk 0:00:04.9]} 54.
Rc8 {[%clk 0:00:51.4]} 54... Kg6 {[%clk 0:00:05.3]} 55. Ke4 {[%clk 0:00:52.1]}
55... Kf6 {[%clk 0:00:05.8]} 56. h5 {[%clk 0:00:52.6]} 56... Kg5 {[%clk
0:00:06]} 57. Rg8+ {[%clk 0:00:52.8]} 57... Kh6 {[%clk 0:00:06.1]} 58. Kd3
{[%clk 0:00:53.6]} 58... Bf6 {[%clk 0:00:04.8]} 59. Rf8 {[%clk 0:00:50.5]} 59...
Kg7 {[%clk 0:00:04.6]} 60. Rc8 {[%clk 0:00:51.2]} 60... Be5 {[%clk 0:00:05]} 61.
Ke4 {[%clk 0:00:51.2]} 61... Kh6 {[%clk 0:00:04.4]} 62. Kf5 {[%clk 0:00:51.2]}
62... Kg7 {[%clk 0:00:03.8]} 63. g5 {[%clk 0:00:51.5]} 63... Bd4 {[%clk
0:00:03.3]} 64. Rc7 {[%clk 0:00:51.1]} 64... Be5 {[%clk 0:00:01.9]} 65. g6
{[%clk 0:00:51]} 65... Kg8 {[%clk 0:00:02.1]} 66. Rxf7 {[%clk 0:00:50.8]} 66...
c2 {[%clk 0:00:01.8]} 67. Rc7 {[%clk 0:00:51.5]} 1-0

[Event "Early-Titled-Tuesday-Blitz-October-03-2023"]
[Site "Chess.com"]
[Date "2023.10.03"]
[Round "1"]
[White "CSB7"]
[Black "Taran2004"]
[Result "1-0"]
[WhiteElo "2757"]
[BlackElo "2431"]
[TimeControl "180+1"]
[EndTime "8:07:49 PDT"]
[Termination "CSB7 won by resignation"]

1. e4 {[%clk 0:03:00.9]} 1... c6 {[%clk 0:02:59.2]} 2. Ne2 {[%clk 0:02:59.7]}
2... d5 {[%clk 0:02:59]} 3. e5 {[%clk 0:02:59.9]} 3... Bf5 {[%clk 0:02:57.8]} 4.
Ng3 {[%clk 0:02:59.5]} 4... Bg6 {[%clk 0:02:58.4]} 5. h4 {[%clk 0:02:59.6]} 5...
h6 {[%clk 0:02:56.3]} 6. h5 {[%clk 0:02:59.8]} 6... Bh7 {[%clk 0:02:56.2]} 7. e6
{[%clk 0:03:00.3]} 7... fxe6 {[%clk 0:02:54.1]} 8. d4 {[%clk 0:03:00.8]} 8...
Nf6 {[%clk 0:02:33]} 9. Bd3 {[%clk 0:02:59.8]} 9... Ne4 {[%clk 0:02:32.8]} 10.
Bxe4 {[%clk 0:01:58.4]} 10... dxe4 {[%clk 0:02:30.7]} 11. Nc3 {[%clk 0:01:57.3]}
11... Nd7 {[%clk 0:02:27.5]} 12. Ngxe4 {[%clk 0:01:30.8]} 12... e5 {[%clk
0:02:24.1]} 13. dxe5 {[%clk 0:01:23]} 13... Nxe5 {[%clk 0:02:21.1]} 14. Qe2
{[%clk 0:01:23.4]} 14... Qa5 {[%clk 0:02:03.8]} 15. Bd2 {[%clk 0:01:19.9]} 15...
O-O-O {[%clk 0:01:47.9]} 16. O-O-O {[%clk 0:01:19]} 16... e6 {[%clk 0:01:29.9]}
17. Kb1 {[%clk 0:01:09.9]} 17... Bb4 {[%clk 0:01:15.4]} 18. a3 {[%clk
0:00:53.9]} 18... Bxa3 {[%clk 0:01:07]} 19. bxa3 {[%clk 0:00:48.1]} 19... Qxa3
{[%clk 0:01:07.9]} 20. Rh3 {[%clk 0:00:18.5]} 20... Qb4+ {[%clk 0:00:56.5]} 21.
Ka1 {[%clk 0:00:18.7]} 21... Nc4 {[%clk 0:00:53.1]} 22. Rb1 {[%clk 0:00:16.9]}
22... Qa5+ {[%clk 0:00:51.6]} 23. Na2 {[%clk 0:00:16.6]} 23... Nxd2 {[%clk
0:00:50.5]} 24. Nxd2 {[%clk 0:00:13.2]} 24... Rxd2 {[%clk 0:00:33.9]} 25. Qxe6+
{[%clk 0:00:13.2]} 25... Kb8 {[%clk 0:00:34.5]} 26. Rhb3 {[%clk 0:00:11.3]}
26... b6 {[%clk 0:00:22]} 27. Qxc6 {[%clk 0:00:08.5]} 27... Rxc2 {[%clk
0:00:17.8]} 28. Rxb6+ {[%clk 0:00:05.1]} 28... axb6 {[%clk 0:00:17.9]} 29. Rxb6+
{[%clk 0:00:06]} 29... Qxb6 {[%clk 0:00:18.1]} 30. Qxb6+ {[%clk 0:00:06.9]}
30... Ka8 {[%clk 0:00:16.4]} 31. Qa6+ {[%clk 0:00:07.2]} 31... Kb8 {[%clk
0:00:16.5]} 32. Qb6+ {[%clk 0:00:08.1]} 32... Ka8 {[%clk 0:00:16.2]} 33. Nb4
{[%clk 0:00:04.9]} 33... Rc1+ {[%clk 0:00:11.5]} 34. Ka2 {[%clk 0:00:05.4]}
34... Rhc8 {[%clk 0:00:08.4]} 35. Qa6+ {[%clk 0:00:05.4]} 35... Kb8 {[%clk
0:00:08.8]} 36. Qb6+ {[%clk 0:00:05.5]} 36... Ka8 {[%clk 0:00:09.2]} 37. Qa6+
{[%clk 0:00:05.3]} 37... Kb8 {[%clk 0:00:09.6]} 38. Qb5+ {[%clk 0:00:05.8]}
38... Ka8 {[%clk 0:00:09.6]} 39. Qa5+ {[%clk 0:00:04.1]} 39... Kb8 {[%clk
0:00:09.6]} 40. Qb5+ {[%clk 0:00:03]} 40... Kc7 {[%clk 0:00:08.6]} 41. Qe5+
{[%clk 0:00:02.1]} 41... Kd7 {[%clk 0:00:08.7]} 42. Qxg7+ {[%clk 0:00:02.4]}
42... Kd6 {[%clk 0:00:08.4]} 43. Qxh7 {[%clk 0:00:02.8]} 43... Ra8+ {[%clk
0:00:08.7]} 44. Kb2 {[%clk 0:00:02.7]} 44... Rac8 {[%clk 0:00:09.6]} 45. Qxh6+
{[%clk 0:00:02.8]} 45... Ke5 {[%clk 0:00:10]} 46. Qxc1 {[%clk 0:00:03.4]} 46...
Rxc1 {[%clk 0:00:09.5]} 47. Kxc1 {[%clk 0:00:04.3]} 47... Kf5 {[%clk 0:00:09.4]}
48. g4+ {[%clk 0:00:04.8]} 48... Kxg4 {[%clk 0:00:09.3]} 49. h6 {[%clk 0:00:05]}
49... Kg5 {[%clk 0:00:10.2]} 50. h7 {[%clk 0:00:05.8]} 50... Kf4 {[%clk
0:00:11.1]} 51. h8=Q {[%clk 0:00:06.5]} 51... Kf3 {[%clk 0:00:12]} 52. Qh4
{[%clk 0:00:05.8]} 52... Kg2 {[%clk 0:00:12.2]} 53. Qg3+ {[%clk 0:00:05.8]}
53... Kf1 {[%clk 0:00:13.1]} 54. f4 {[%clk 0:00:05.6]} 54... Ke2 {[%clk
0:00:14]} 55. f5 {[%clk 0:00:06]} 1-0

[Event "Early-Titled-Tuesday-Blitz-October-03-2023"]
[Site "Chess.com"]
[Date "2023.10.03"]
[Round "1"]
[White "Alexei_Gubajdullin"]
[Black "Cheer_Down"]
[Result "1-0"]
[WhiteElo "2731"]
[BlackElo "2409"]
[TimeControl "180+1"]
[EndTime "8:07:50 PDT"]
[Termination "Alexei_Gubajdullin won on time"]

1. d4 {[%clk 0:03:00.9]} 1... d5 {[%clk 0:02:57.7]} 2. Nf3 {[%clk 0:03:01.1]}
2... Nf6 {[%clk 0:02:56.6]} 3. Bf4 {[%clk 0:03:01.8]} 3... e6 {[%clk 0:02:56.4]}
4. e3 {[%clk 0:03:02.3]} 4... c5 {[%clk 0:02:56.9]} 5. Nbd2 {[%clk 0:03:02.4]}
5... Nc6 {[%clk 0:02:56.5]} 6. c3 {[%clk 0:03:02.8]} 6... cxd4 {[%clk
0:02:56.9]} 7. exd4 {[%clk 0:03:02.2]} 7... Nh5 {[%clk 0:02:56.9]} 8. Bg5 {[%clk
0:03:01.6]} 8... f6 {[%clk 0:02:55.7]} 9. Be3 {[%clk 0:03:01.5]} 9... Bd6 {[%clk
0:02:54.8]} 10. g3 {[%clk 0:03:01.8]} 10... O-O {[%clk 0:02:48.2]} 11. Bg2
{[%clk 0:03:01.9]} 11... f5 {[%clk 0:02:36.2]} 12. Nb3 {[%clk 0:03:00.3]} 12...
f4 {[%clk 0:02:33.9]} 13. Bd2 {[%clk 0:03:00.4]} 13... g6 {[%clk 0:02:21]} 14.
O-O {[%clk 0:02:59.5]} 14... Qf6 {[%clk 0:02:03]} 15. Nc5 {[%clk 0:02:46.1]}
15... b6 {[%clk 0:01:58]} 16. Nd3 {[%clk 0:02:43.7]} 16... Ba6 {[%clk
0:01:57.7]} 17. Bc1 {[%clk 0:02:27.8]} 17... Qf5 {[%clk 0:01:53.4]} 18. Nfe1
{[%clk 0:02:25.5]} 18... f3 {[%clk 0:01:41.3]} 19. Bh1 {[%clk 0:02:18.9]} 19...
Rac8 {[%clk 0:01:29.4]} 20. a4 {[%clk 0:01:57.5]} 20... g5 {[%clk 0:01:19.5]}
21. b4 {[%clk 0:01:54.6]} 21... Bc4 {[%clk 0:01:18.1]} 22. Qxf3 {[%clk
0:01:28.7]} 22... Bxd3 {[%clk 0:00:53.7]} 23. Qxd3 {[%clk 0:01:25]} 23... Ne7
{[%clk 0:00:33.6]} 24. Bd2 {[%clk 0:01:20.8]} 24... h6 {[%clk 0:00:31.8]} 25.
Qxf5 {[%clk 0:01:14]} 25... exf5 {[%clk 0:00:31.5]} 26. Nd3 {[%clk 0:01:12.3]}
26... Nf6 {[%clk 0:00:31.7]} 27. f3 {[%clk 0:01:10.5]} 27... Ng6 {[%clk
0:00:26]} 28. Rfe1 {[%clk 0:01:10]} 28... Rfe8 {[%clk 0:00:24.8]} 29. Bg2 {[%clk
0:01:08.8]} 29... Kg7 {[%clk 0:00:23.3]} 30. Rxe8 {[%clk 0:01:07.5]} 30... Rxe8
{[%clk 0:00:22.9]} 31. Re1 {[%clk 0:01:08.1]} 31... Rxe1+ {[%clk 0:00:22.5]} 32.
Bxe1 {[%clk 0:01:07.4]} 32... g4 {[%clk 0:00:23]} 33. fxg4 {[%clk 0:00:57.8]}
33... fxg4 {[%clk 0:00:23.9]} 34. a5 {[%clk 0:00:43.6]} 34... b5 {[%clk
0:00:19.3]} 35. a6 {[%clk 0:00:40.8]} 35... h5 {[%clk 0:00:17.5]} 36. Bf1 {[%clk
0:00:40.3]} 36... Ne8 {[%clk 0:00:10.7]} 37. Nc5 {[%clk 0:00:31.1]} 37... Nc7
{[%clk 0:00:10.9]} 38. Nb7 {[%clk 0:00:30.9]} 38... Be7 {[%clk 0:00:10.3]} 39.
Na5 {[%clk 0:00:30.5]} 39... Nxa6 {[%clk 0:00:05.5]} 40. Bxb5 {[%clk 0:00:30.2]}
40... Nb8 {[%clk 0:00:04.2]} 41. Bd3 {[%clk 0:00:28]} 41... Nf8 {[%clk
0:00:03.8]} 42. b5 {[%clk 0:00:27.3]} 42... Nfd7 {[%clk 0:00:03.9]} 43. Nc6
{[%clk 0:00:26]} 43... Bd6 {[%clk 0:00:03]} 44. c4 {[%clk 0:00:22.7]} 44... dxc4
{[%clk 0:00:02.8]} 45. Bxc4 {[%clk 0:00:23]} 45... Nb6 {[%clk 0:00:02.8]} 46.
Bb3 {[%clk 0:00:19.9]} 46... Nc8 {[%clk 0:00:03]} 47. Bc3 {[%clk 0:00:19.1]}
47... Kf8 {[%clk 0:00:01.4]} 48. Kg2 {[%clk 0:00:18.9]} 48... Nxc6 {[%clk
0:00:01.3]} 49. bxc6 {[%clk 0:00:18.5]} 49... Ke7 {[%clk 0:00:01.6]} 50. d5
{[%clk 0:00:18.9]} 50... Nb6 {[%clk 0:00:01.3]} 51. h3 {[%clk 0:00:18.6]} 1-0

[Event "Early-Titled-Tuesday-Blitz-October-03-2023"]
[Site "Chess.com"]
[Date "2023.10.03"]
[Round "1"]
[White "swayamsm"]
[Black "Witty_Alien"]
[Result "1-0"]
[WhiteElo "2587"]
[BlackElo "2232"]
[TimeControl "180+1"]
[EndTime "8:07:52 PDT"]
[Termination "swayamsm won by resignation"]

1. d4 {[%clk 0:02:56.9]} 1... e5 {[%clk 0:02:56.9]} 2. dxe5 {[%clk 0:02:56]}
2... d6 {[%clk 0:02:56]} 3. Nf3 {[%clk 0:02:53.5]} 3... Nc6 {[%clk 0:02:55.7]}
4. Nc3 {[%clk 0:02:50.7]} 4... Bg4 {[%clk 0:02:54.6]} 5. Bg5 {[%clk 0:02:47.1]}
5... Qd7 {[%clk 0:02:51.2]} 6. e3 {[%clk 0:02:39]} 6... h6 {[%clk 0:02:15]} 7.
Bh4 {[%clk 0:02:33.8]} 7... Nge7 {[%clk 0:02:10.7]} 8. exd6 {[%clk 0:02:28.9]}
8... Nf5 {[%clk 0:02:10.4]} 9. Bg3 {[%clk 0:02:10.7]} 9... Nxg3 {[%clk
0:02:08.1]} 10. hxg3 {[%clk 0:02:10.1]} 10... Bxd6 {[%clk 0:02:08.5]} 11. Be2
{[%clk 0:02:03.3]} 11... O-O-O {[%clk 0:01:59.7]} 12. Qd5 {[%clk 0:01:56.4]}
12... Nb4 {[%clk 0:01:53.9]} 13. Qd2 {[%clk 0:01:46.6]} 13... Qf5 {[%clk
0:01:18.2]} 14. Nd4 {[%clk 0:01:43.7]} 14... Qg6 {[%clk 0:01:14.8]} 15. Ncb5
{[%clk 0:01:33.2]} 15... Bxe2 {[%clk 0:00:42.7]} 16. Kxe2 {[%clk 0:01:13.4]}
16... Rhe8 {[%clk 0:00:27.7]} 17. Kf1 {[%clk 0:01:05.9]} 17... Nd5 {[%clk
0:00:23.7]} 18. Nxa7+ {[%clk 0:01:02.8]} 18... Kb8 {[%clk 0:00:23.5]} 19. Ndc6+
{[%clk 0:01:02]} 19... bxc6 {[%clk 0:00:22.5]} 20. Nxc6+ {[%clk 0:01:02.9]}
20... Kc8 {[%clk 0:00:18.9]} 21. Qxd5 {[%clk 0:00:59.2]} 21... Qxc2 {[%clk
0:00:14.1]} 22. Nxd8 {[%clk 0:00:57.9]} 22... Rxd8 {[%clk 0:00:11.6]} 23. Rh4
{[%clk 0:00:54.8]} 23... Bxg3 {[%clk 0:00:09.3]} 24. Qa8+ {[%clk 0:00:52.2]}
24... Kd7 {[%clk 0:00:09.6]} 25. Qa4+ {[%clk 0:00:47.4]} 25... Qxa4 {[%clk
0:00:08.5]} 26. Rxa4 {[%clk 0:00:48.3]} 26... Bd6 {[%clk 0:00:04.9]} 27. Rd4
{[%clk 0:00:48.7]} 27... Rb8 {[%clk 0:00:03.7]} 28. b3 {[%clk 0:00:47.4]} 28...
Ke7 {[%clk 0:00:03.3]} 29. Rc1 {[%clk 0:00:47.5]} 29... Ra8 {[%clk 0:00:03]} 30.
Rc2 {[%clk 0:00:47.3]} 30... Ra5 {[%clk 0:00:03]} 31. Re4+ {[%clk 0:00:47.7]}
31... Kd7 {[%clk 0:00:02.6]} 32. f4 {[%clk 0:00:47.9]} 32... f5 {[%clk
0:00:02.9]} 33. Rec4 {[%clk 0:00:48.5]} 33... g5 {[%clk 0:00:02.7]} 34. g3
{[%clk 0:00:46.7]} 34... gxf4 {[%clk 0:00:02.8]} 35. exf4 {[%clk 0:00:47.3]}
35... Rd5 {[%clk 0:00:02.5]} 36. Kg2 {[%clk 0:00:47.5]} 36... Rd3 {[%clk
0:00:02.5]} 37. R4c3 {[%clk 0:00:46.4]} 37... Rd4 {[%clk 0:00:02.5]} 38. a4
{[%clk 0:00:46.6]} 38... h5 {[%clk 0:00:02]} 39. Rc4 {[%clk 0:00:46.4]} 39...
Rd3 {[%clk 0:00:02.2]} 40. R4c3 {[%clk 0:00:46.3]} 40... Rd1 {[%clk 0:00:02.4]}
41. Re3 {[%clk 0:00:41.4]} 41... Ra1 {[%clk 0:00:01.6]} 42. Kf3 {[%clk
0:00:40.3]} 42... h4 {[%clk 0:00:02]} 43. gxh4 {[%clk 0:00:36.4]} 43... Rf1+
{[%clk 0:00:02.7]} 44. Rf2 {[%clk 0:00:36]} 44... Rh1 {[%clk 0:00:03.1]} 45. Kg3
{[%clk 0:00:34.9]} 45... Kc8 {[%clk 0:00:03]} 46. Ref3 {[%clk 0:00:33.1]} 46...
Bc5 {[%clk 0:00:03.1]} 47. Rh2 {[%clk 0:00:32.9]} 47... Rg1+ {[%clk 0:00:02.7]}
48. Rg2 {[%clk 0:00:32.9]} 48... Rh1 {[%clk 0:00:02.4]} 49. Rh2 {[%clk
0:00:33.5]} 49... Rg1+ {[%clk 0:00:02.6]} 50. Kh3 {[%clk 0:00:34.2]} 50... Bd6
{[%clk 0:00:02]} 51. h5 {[%clk 0:00:34.5]} 51... Rg4 {[%clk 0:00:02.3]} 52. h6
{[%clk 0:00:33.8]} 52... Bxf4 {[%clk 0:00:02.4]} 53. Rxf4 {[%clk 0:00:31.8]}
53... Rxf4 {[%clk 0:00:02.7]} 54. h7 {[%clk 0:00:32.5]} 54... Kb7 {[%clk
0:00:01.6]} 55. h8=Q {[%clk 0:00:32]} 1-0

[Event "Early-Titled-Tuesday-Blitz-October-03-2023"]
[Site "Chess.com"]
[Date "2023.10.03"]
[Round "1"]
[White "Shuvalov"]
[Black "BardArtem"]
[Result "1/2-1/2"]
[WhiteElo "2452"]
[BlackElo "2772"]
[TimeControl "180+1"]
[EndTime "8:07:54 PDT"]
[Termination "Game drawn by repetition"]

1. d4 {[%clk 0:03:00.4]} 1... d5 {[%clk 0:02:59.3]} 2. c4 {[%clk 0:03:00.4]}
2... c6 {[%clk 0:02:55.5]} 3. Nf3 {[%clk 0:03:01]} 3... Nf6 {[%clk 0:02:55.6]}
4. e3 {[%clk 0:02:58.3]} 4... Bf5 {[%clk 0:02:55]} 5. Nc3 {[%clk 0:02:56.7]}
5... e6 {[%clk 0:02:55.3]} 6. Nh4 {[%clk 0:02:56.9]} 6... Be4 {[%clk 0:02:55.8]}
7. f3 {[%clk 0:02:56.3]} 7... Bg6 {[%clk 0:02:55.6]} 8. Nxg6 {[%clk 0:02:56.4]}
8... hxg6 {[%clk 0:02:55.5]} 9. Bd2 {[%clk 0:02:39.6]} 9... a6 {[%clk
0:02:49.8]} 10. Rc1 {[%clk 0:02:34.8]} 10... Bd6 {[%clk 0:02:38.8]} 11. f4
{[%clk 0:02:24.5]} 11... b5 {[%clk 0:02:34.8]} 12. b3 {[%clk 0:02:20.8]} 12...
Nbd7 {[%clk 0:02:26.3]} 13. Bd3 {[%clk 0:02:18.8]} 13... b4 {[%clk 0:01:46.8]}
14. Na4 {[%clk 0:02:13.7]} 14... g5 {[%clk 0:01:25]} 15. O-O {[%clk 0:01:57.9]}
15... gxf4 {[%clk 0:01:14.7]} 16. exf4 {[%clk 0:01:58.8]} 16... Ne4 {[%clk
0:00:57]} 17. Bxe4 {[%clk 0:01:49.7]} 17... dxe4 {[%clk 0:00:57.9]} 18. Qe2
{[%clk 0:01:46.4]} 18... Qh4 {[%clk 0:00:55]} 19. g3 {[%clk 0:01:45]} 19... Qh3
{[%clk 0:00:52.1]} 20. Rf2 {[%clk 0:01:26.9]} 20... Nf6 {[%clk 0:00:52]} 21. c5
{[%clk 0:00:42.6]} 21... Bc7 {[%clk 0:00:51.7]} 22. Bxb4 {[%clk 0:00:42.9]}
22... Nd5 {[%clk 0:00:50.9]} 23. Bd2 {[%clk 0:00:40.7]} 23... f5 {[%clk
0:00:49.7]} 24. Nc3 {[%clk 0:00:38.1]} 24... g5 {[%clk 0:00:46.5]} 25. Nxd5
{[%clk 0:00:36.9]} 25... exd5 {[%clk 0:00:42.9]} 26. Rcf1 {[%clk 0:00:32.7]}
26... Ke7 {[%clk 0:00:30.6]} 27. Rg2 {[%clk 0:00:30.1]} 27... g4 {[%clk
0:00:29.5]} 28. Qe1 {[%clk 0:00:26.6]} 28... a5 {[%clk 0:00:27.3]} 29. a4 {[%clk
0:00:24.8]} 29... Rhb8 {[%clk 0:00:27.1]} 30. Qe3 {[%clk 0:00:23.7]} 30... Rb7
{[%clk 0:00:26.3]} 31. Rb1 {[%clk 0:00:22.9]} 31... Rab8 {[%clk 0:00:26]} 32.
Rb2 {[%clk 0:00:13.6]} 32... Ke6 {[%clk 0:00:24.9]} 33. Rb1 {[%clk 0:00:13.5]}
33... Qh8 {[%clk 0:00:24.3]} 34. Rb2 {[%clk 0:00:12.7]} 34... Ra8 {[%clk
0:00:21.9]} 35. Bc3 {[%clk 0:00:11.9]} 35... Bd8 {[%clk 0:00:18.1]} 36. Rb1
{[%clk 0:00:11.2]} 36... Qf6 {[%clk 0:00:18]} 37. Rgb2 {[%clk 0:00:10.7]} 37...
Rab8 {[%clk 0:00:16.9]} 38. b4 {[%clk 0:00:10.4]} 38... axb4 {[%clk 0:00:16.9]}
39. Rxb4 {[%clk 0:00:11.3]} 39... Qe7 {[%clk 0:00:16.4]} 40. Rxb7 {[%clk
0:00:10.7]} 40... Rxb7 {[%clk 0:00:17.3]} 41. Rxb7 {[%clk 0:00:10.9]} 41... Qxb7
{[%clk 0:00:18.2]} 42. Qd2 {[%clk 0:00:11]} 42... Qb1+ {[%clk 0:00:16.2]} 43.
Kg2 {[%clk 0:00:11]} 43... Qb3 {[%clk 0:00:11]} 44. a5 {[%clk 0:00:10.1]} 44...
Qa4 {[%clk 0:00:10.3]} 45. Qb2 {[%clk 0:00:07.9]} 45... Bxa5 {[%clk 0:00:04.4]}
46. Bxa5 {[%clk 0:00:06.6]} 46... Qxa5 {[%clk 0:00:05.3]} 47. Qb8 {[%clk
0:00:05.6]} 47... Qd2+ {[%clk 0:00:05.6]} 48. Kg1 {[%clk 0:00:05.7]} 48... Qe1+
{[%clk 0:00:06]} 49. Kg2 {[%clk 0:00:06]} 49... Qe2+ {[%clk 0:00:06.9]} 50. Kg1
{[%clk 0:00:06.1]} 50... Qe1+ {[%clk 0:00:07.4]} 51. Kg2 {[%clk 0:00:06.5]}
51... Qd2+ {[%clk 0:00:08.3]} 52. Kf1 {[%clk 0:00:06.3]} 52... Qd1+ {[%clk
0:00:08.5]} 53. Kg2 {[%clk 0:00:06.5]} 53... Qd2+ {[%clk 0:00:07.9]} 1/2-1/2